bitfinex/quotes_BTCUSD_20240901
["timestamp","ask_amount","ask_price","bid_price","bid_amount"]
[1725197984926,0.618271,58109.0,58108.0,0.03624592]
[1725197985131,0.618271,58109.0,58108.0,0.028]
[1725197985968,0.617271,58109.0,58108.0,0.014]
[1725197986172,0.618271,58109.0,58108.0,0.028]
[1725197986829,0.618271,58109.0,58108.0,0.014]
[1725197987038,0.6353257,58109.0,58108.0,0.014]
[1725197987253,0.6353257,58109.0,58108.0,0.028]
[1725197987254,0.618271,58109.0,58108.0,0.028]
[1725197987469,0.962451,58109.0,58108.0,0.03624592]
[1725197987882,0.962451,58109.0,58108.0,0.028]
[1725197988098,1.0931118,58109.0,58108.0,0.028]
[1725197989201,1.1781118,58109.0,58108.0,0.028]
[1725197989853,1.047451,58109.0,58108.0,0.028]
[1725197990068,0.962451,58109.0,58108.0,0.028]
[1725197990279,0.98945223,58109.0,58108.0,0.028]
[1725197991364,1.40373223,58109.0,58108.0,0.028]
[1725197991846,1.376731,58109.0,58108.0,0.028]
[1725197992059,1.54528264,58109.0,58108.0,0.028]
[1725197993156,1.54428264,58109.0,58108.0,0.014]
[1725197993636,1.54428264,58109.0,58108.0,0.028]
[1725197993637,1.54528264,58109.0,58108.0,0.028]
[1725197993847,1.54528264,58109.0,58108.0,0.014]
[1725197994264,1.54528264,58109.0,58108.0,0.028]
[1725197995118,1.5722847,58109.0,58108.0,0.028]
[1725197996184,1.5722847,58109.0,58108.0,0.0288998]
[1725197997991,2.5240747,58109.0,58108.0,0.0288998]
[1725197998236,2.9476547,58109.0,58108.0,0.0288998]
[1725197998462,3.3148347,58109.0,58108.0,0.0288998]
[1725197998912,3.3168347,58109.0,58108.0,0.0288998]
[1725197999566,3.3168347,58109.0,58108.0,0.0148998]
[1725197999990,3.3158347,58109.0,58108.0,0.0098998]
[1725198000442,3.3158347,58109.0,58108.0,0.0008998]
[1725198000658,3.3168347,58109.0,58108.0,0.0148998]
[1725198000874,2.39183006,58109.0,58108.0,0.0148998]
[1725198001093,1.82931306,58109.0,58108.0,0.0148998]
[1725198001307,1.802311,58109.0,58108.0,0.0148998]
[1725198001744,1.801311,58109.0,58108.0,0.0008998]
[1725198001979,1.96986264,58109.0,58108.0,0.0008998]
[1725198002417,2.46655364,58109.0,58108.0,0.0008998]
[1725198003061,2.46455364,58109.0,58108.0,0.0008998]
[1725198003273,2.46455364,58109.0,58108.0,0.0048998]
[1725198003489,2.46455364,58109.0,58108.0,0.0108998]
[1725198003926,2.46455364,58109.0,58108.0,0.0068998]
[1725198004139,2.46555364,58109.0,58108.0,0.0178998]
[1725198006371,0.862451,58109.0,58108.0,0.0178998]
[1725198006814,0.518271,58109.0,58108.0,0.0178998]
[1725198007029,0.862451,58109.0,58108.0,0.0178998]
[1725198007250,0.861451,58109.0,58108.0,0.0068998]
[1725198007479,0.861451,58109.0,58108.0,0.0118998]
[1725198007726,0.862451,58109.0,58108.0,0.0118998]
[1725198007952,0.518271,58109.0,58108.0,0.0198998]
[1725198008168,0.518271,58109.0,58108.0,0.0008998]
[1725198008391,0.618271,58109.0,58108.0,0.0008998]
[1725198008595,0.64527219,58109.0,58108.0,0.0148998]
[1725198009042,0.64427219,58109.0,58108.0,0.0148998]
[1725198009251,0.64527219,58109.0,58108.0,0.0148998]
[1725198009467,0.30109219,58109.0,58108.0,0.0148998]
[1725198009687,0.30109219,58109.0,58108.0,0.02316346]
[1725198009904,0.30109219,58109.0,58108.0,0.03516346]
[1725198010111,0.30009219,58109.0,58108.0,0.03516346]
[1725198010332,0.12800119,58109.0,58108.0,0.03516346]
[1725198010548,0.02800119,58109.0,58108.0,0.03516346]
[1725198010757,0.12800119,58109.0,58108.0,0.03516346]
[1725198011199,0.12800119,58109.0,58108.0,0.36055646]
[1725198011852,0.001,58109.0,58108.0,0.36055646]
[1725198012544,0.001,58109.0,58108.0,0.70474246]
[1725198014370,0.001,58109.0,58108.0,0.36055646]
[1725198014579,0.001,58109.0,58108.0,0.70474246]
[1725198014789,0.001,58109.0,58108.0,0.36055646]
[1725198016488,0.001,58109.0,58108.0,0.70474246]
[1725198016907,0.001,58109.0,58108.0,1.04892846]
[1725198017831,0.000818,58115.0,58113.0,0.172075]
[1725198018058,0.000818,58115.0,58108.0,0.18846346]
[1725198018276,0.19908742,58109.0,58108.0,0.1681998]
[1725198018491,0.17209,58109.0,58108.0,0.1016998]
[1725198018704,0.17209,58109.0,58108.0,0.1156998]
[1725198018922,0.19908927,58109.0,58108.0,0.1156998]
[1725198019356,0.02699927,58109.0,58108.0,0.1156998]
[1725198019614,0.56762585,58109.0,58108.0,0.0008998]
[1725198019829,1.76386585,58109.0,58108.0,0.0008998]
[1725198020067,2.10804585,58109.0,58108.0,0.0008998]
[1725198020511,2.00118985,58109.0,58108.0,0.0008998]
[1725198020734,2.00118985,58109.0,58108.0,0.0148998]
[1725198020961,2.00118985,58109.0,58108.0,0.0288998]
[1725198021201,2.00118985,58109.0,58108.0,0.0148998]
[1725198021643,1.73063512,58109.0,58108.0,0.0238998]
[1725198021895,1.73063512,58109.0,58108.0,0.0098998]
[1725198022321,1.73063512,58109.0,58108.0,0.0168998]
[1725198022560,1.90272512,58109.0,58108.0,0.0168998]
[1725198023729,1.73364454,58109.0,58108.0,0.0168998]
[1725198024371,2.70883954,58109.0,58108.0,0.0168998]
[1725198025082,2.35592754,58109.0,58108.0,0.0168998]
[1725198025286,2.17129754,58109.0,58108.0,0.0168998]
[1725198026152,2.19830213,58109.0,58108.0,0.0168998]
[1725198026795,2.36685377,58109.0,58108.0,0.0168998]
[1725198032232,2.33984918,58109.0,58108.0,0.0168998]
[1725198035412,2.68402918,58109.0,58108.0,0.0168998]
[1725198035636,2.70702918,58109.0,58108.0,0.0168998]
[1725198036388,2.70702918,58109.0,58108.0,8e-07]
[1725198036587,2.26937618,58109.0,58108.0,8e-07]
[1725198038192,1.894089,58106.0,58105.0,0.13]
[1725198038517,4.482882,58106.0,58105.0,0.13]
[1725198038702,4.617425,58106.0,58105.0,0.13]
[1725198038996,4.574263,58106.0,58105.0,0.13]
[1725198040044,4.579263,58106.0,58105.0,0.131]
[1725198040255,4.68201164,58106.0,58105.0,0.131]
[1725198040457,3.57524164,58106.0,58105.0,0.131]
[1725198040918,3.57524164,58106.0,58079.0,0.0008998]
[1725198040919,0.001,58080.0,58079.0,0.0008998]
[1725198041159,0.86188,58080.0,58079.0,0.0822998]
[1725198041381,1.048068,58080.0,58079.0,0.0822998]
[1725198041797,1.76378416,58080.0,58079.0,0.0822998]
[1725198041990,1.736772,58080.0,58079.0,0.0008998]
[1725198042140,1.737772,58080.0,58079.0,0.0138998]
[1725198042778,2.106124,58080.0,58079.0,0.0208998]
[1725198043236,2.106124,58080.0,58079.0,0.0228998]
[1725198043683,2.104124,58080.0,58079.0,0.0028998]
[1725198043900,2.351268,58080.0,58079.0,0.0028998]
[1725198044370,2.351268,58080.0,58079.0,0.0008998]
[1725198045712,2.353268,58080.0,58079.0,0.0008998]
[1725198045921,2.356268,58080.0,58079.0,0.0008998]
[1725198046341,2.353268,58080.0,58079.0,0.0008998]
[1725198046544,2.008916,58080.0,58079.0,0.0008998]
[1725198046747,1.844949,58080.0,58079.0,0.0008998]
[1725198047372,1.845949,58080.0,58079.0,0.0008998]
[1725198047977,1.87296556,58080.0,58079.0,0.0008998]
[1725198048206,1.68060056,58080.0,58079.0,0.0008998]
[1725198048608,2.48698556,58080.0,58079.0,0.0008998]
[1725198048821,2.0284352,58080.0,58079.0,0.0008998]
[1725198049246,1.8491522,58080.0,58079.0,0.0008998]
[1725198049461,0.03001656,58080.0,58079.0,0.1463998]
[1725198049690,0.03001656,58080.0,58079.0,1.01073763]
[1725198049887,0.03001656,58080.0,58079.0,1.37595848]
[1725198050096,0.03001656,58080.0,58079.0,1.37995848]
[1725198050307,0.17213,58096.0,58081.0,0.1455]
[1725198050527,0.172136,58094.0,58090.0,0.0814]
[1725198050979,0.172136,58094.0,58091.0,0.015848]
[1725198051202,0.172136,58094.0,58092.0,0.0814]
[1725198051407,0.172136,58094.0,58093.0,0.01584776]
[1725198051602,0.172136,58094.0,58093.0,0.0814]
[1725198051912,0.17213,58096.0,58095.0,0.0814]
[1725198052347,0.27213,58096.0,58095.0,0.0814]
[1725198052573,1.0133817,58096.0,58095.0,0.09623948]
[1725198052800,0.616387,58096.0,58095.0,0.09623948]
[1725198053044,0.617387,58096.0,58095.0,0.0804]
[1725198053274,0.618387,58096.0,58095.0,0.0804]
[1725198053479,0.27213,58096.0,58095.0,0.09623948]
[1725198053910,0.27313,58096.0,58095.0,0.10623948]
[1725198054338,0.27213,58096.0,58095.0,0.09623948]
[1725198054550,0.27313,58096.0,58095.0,0.09823948]
[1725198055369,0.27513,58096.0,58095.0,0.09823948]
[1725198055578,0.27413,58096.0,58095.0,0.09823948]
[1725198055797,0.001,58096.0,58095.0,0.33557048]
[1725198056070,0.001,58096.0,58095.0,0.33357048]
[1725198056521,0.002,58096.0,58095.0,0.34257048]
[1725198056729,0.002,58096.0,58095.0,0.68683348]
[1725198056930,0.002,58096.0,58095.0,0.67783348]
[1725198056931,0.001,58096.0,58095.0,0.67783348]
[1725198057340,0.002,58096.0,58095.0,0.68183348]
[1725198057562,0.002,58096.0,58095.0,0.33757048]
[1725198058114,0.002,58096.0,58095.0,0.16543948]
[1725198058561,0.002,58096.0,58095.0,0.33757048]
[1725198058728,0.0290022,58096.0,58095.0,0.33757048]
[1725198059611,0.002,58096.0,58095.0,0.33757048]
[1725198060756,0.344225,58102.0,58095.0,0.33757048]
[1725198060958,0.172118,58100.0,58095.0,0.33757048]
[1725198061512,0.172128,58097.0,58095.0,0.16543948]
[1725198061723,0.344201,58106.0,58099.0,0.004]
[1725198061932,0.344201,58106.0,58095.0,0.01983948]
[1725198061933,0.172112,58102.0,58097.0,0.252824]
[1725198062135,0.172112,58102.0,58097.0,0.0807]
[1725198062373,0.172107,58104.0,58098.0,0.18794337]
[1725198062580,0.001,58102.0,58099.0,0.172119]
[1725198062760,0.001,58102.0,58098.0,0.01582137]
[1725198062990,0.001,58102.0,58099.0,0.01582137]
[1725198063217,0.172111,58102.0,58099.0,0.01482137]
[1725198063472,0.173111,58102.0,58097.0,0.252823]
[1725198063681,0.174111,58102.0,58100.0,0.01565471]
[1725198063887,0.173111,58102.0,58097.0,0.252823]
[1725198064068,0.173111,58102.0,58101.0,0.01565471]
[1725198064306,0.174111,58102.0,58098.0,0.01]
[1725198064514,0.174111,58102.0,58101.0,0.01565471]
[1725198064719,0.174111,58102.0,58098.0,0.01]
[1725198064920,0.174111,58102.0,58101.0,0.01565471]
[1725198065122,0.174111,58102.0,58098.0,0.01]
[1725198065361,0.003,58102.0,58101.0,0.01565471]
[1725198065579,0.002,58102.0,58099.0,0.172119]
[1725198065761,0.002,58102.0,58101.0,0.01565471]
[1725198066036,0.003,58102.0,58101.0,0.01565471]
[1725198066246,0.001,58102.0,58100.0,0.182116]
[1725198066483,0.000818,58105.0,58102.0,0.172111]
[1725198066694,0.000818,58105.0,58102.0,0.171111]
[1725198066909,0.000818,58105.0,58103.0,0.01564423]
[1725198067122,0.860526,58104.0,58103.0,0.01564423]
[1725198067326,0.172121,58099.0,58097.0,0.0807]
[1725198067745,0.172121,58099.0,58098.0,0.0156441]
[1725198067746,0.17212,58099.0,58098.0,0.0156441]
[1725198068186,0.51636,58099.0,58098.0,0.0156441]
[1725198069091,0.54336167,58099.0,58098.0,0.0156441]
[1725198069303,1.01098284,58099.0,58098.0,0.0156441]
[1725198069744,0.516385,58096.0,58095.0,0.0008998]
[1725198070426,0.516385,58096.0,58095.0,0.0165439]
[1725198070633,0.516385,58096.0,58095.0,0.0008998]
[1725198070846,0.516385,58096.0,58095.0,0.0165439]
[1725198071068,0.90286428,58096.0,58095.0,0.0128998]
[1725198071315,0.55860728,58096.0,58095.0,0.0285439]
[1725198071528,0.55860728,58096.0,58095.0,0.0128998]
[1725198071763,0.001,58096.0,58095.0,0.1850308]
[1725198071968,0.001,58096.0,58095.0,0.0128998]
[1725198072488,0.001,58096.0,58095.0,0.0285439]
[1725198072706,0.001,58096.0,58095.0,0.0128998]
[1725198072908,0.002,58096.0,58095.0,0.0285439]
[1725198073118,0.002,58096.0,58095.0,0.0128998]
[1725198073326,0.002,58096.0,58095.0,0.0285439]
[1725198073530,0.174128,58096.0,58095.0,0.0128998]
[1725198073737,0.174128,58096.0,58095.0,0.0285439]
[1725198073945,0.174128,58096.0,58095.0,0.0128998]
[1725198074163,0.174128,58096.0,58095.0,0.0285439]
[1725198074386,0.174128,58096.0,58095.0,0.0128998]
[1725198074839,0.174128,58096.0,58095.0,0.0285439]
[1725198075041,0.174128,58096.0,58095.0,0.0128998]
[1725198075270,0.174128,58096.0,58095.0,0.0285439]
[1725198075483,0.174128,58096.0,58095.0,0.0128998]
[1725198075687,0.174128,58096.0,58095.0,0.0285439]
[1725198075924,0.174128,58096.0,58095.0,0.0128998]
[1725198076121,0.174128,58096.0,58095.0,0.0285439]
[1725198076331,0.174128,58096.0,58095.0,0.0128998]
[1725198076540,0.174128,58096.0,58095.0,0.0285439]
[1725198076761,0.174128,58096.0,58095.0,0.0128998]
[1725198076952,0.174128,58096.0,58095.0,0.0285439]
[1725198077159,0.174128,58096.0,58095.0,0.0128998]
[1725198077369,0.862642,58096.0,58095.0,0.0285439]
[1725198077575,0.518385,58096.0,58095.0,0.0128998]
[1725198077784,0.862642,58096.0,58095.0,0.0128998]
[1725198078197,0.95180637,58096.0,58095.0,0.0128998]
[1725198080335,0.60754937,58096.0,58095.0,0.0128998]
[1725198080555,0.862642,58096.0,58095.0,0.0128998]
[1725198084005,0.861642,58096.0,58095.0,0.0008998]
[1725198084225,0.860642,58096.0,58095.0,0.0008998]
[1725198084453,0.860642,58096.0,58095.0,0.0118998]
[1725198084454,0.517385,58096.0,58095.0,0.0118998]
[1725198084661,0.518385,58096.0,58095.0,0.0118998]
[1725198086427,0.518385,58096.0,58095.0,0.1647998]
[1725198086678,0.518385,58096.0,58095.0,0.0118998]
[1725198087377,0.518385,58096.0,58095.0,0.02755367]
[1725198088025,0.174128,58096.0,58095.0,0.02755367]
[1725198089082,0.518385,58096.0,58095.0,0.02755367]
[1725198089713,0.5453886,58096.0,58095.0,0.02755367]
[1725198091173,0.97879136,58096.0,58095.0,0.02755367]
[1725198091375,1.32304836,58096.0,58095.0,0.02755367]
[1725198091579,1.32304836,58096.0,58095.0,0.0118998]
[1725198091784,1.2339026,58096.0,58095.0,0.0118998]
[1725198092640,1.206899,58096.0,58095.0,0.0118998]
[1725198093479,0.862642,58096.0,58095.0,0.0118998]
[1725198094366,0.929142,58096.0,58095.0,0.0118998]
[1725198096009,0.71698986,58096.0,58095.0,0.0118998]
[1725198096240,0.88911786,58096.0,58095.0,0.0118998]
[1725198098427,0.02700468,58096.0,58095.0,0.3301308]
[1725198098632,0.02700468,58096.0,58095.0,0.34578553]
[1725198099276,0.02700468,58096.0,58095.0,0.69004853]
[1725198099747,0.02700468,58096.0,58095.0,1.03431153]
[1725198099947,0.02700468,58096.0,58095.0,1.46512108]
[1725198100154,0.000818,58100.0,58099.0,0.8626]
[1725198100284,0.000818,58100.0,58099.0,1.45629349]
[1725198100501,0.000818,58100.0,58099.0,1.36858815]
[1725198100705,0.000818,58100.0,58099.0,1.50477007]
[1725198100935,0.000818,58100.0,58099.0,1.72182815]
[1725198101270,0.000818,58100.0,58099.0,1.74882815]
[1725198101491,0.000818,58100.0,58099.0,1.90270036]
[1725198101701,9.139e-05,58100.0,58099.0,1.90270036]
[1725198101902,9.139e-05,58100.0,58099.0,1.74782815]
[1725198102111,0.00109139,58100.0,58099.0,1.74782815]
[1725198102325,0.000818,58102.0,58101.0,1.565026]
[1725198102634,0.000818,58102.0,58101.0,2.60452819]
[1725198103046,0.000818,58109.0,58108.0,1.215651]
[1725198103252,0.000818,58115.0,58108.0,1.215651]
[1725198103253,0.000818,58115.0,58114.0,0.612326]
[1725198103492,0.000818,58115.0,58114.0,1.710779]
[1725198103682,0.000818,58115.0,58114.0,1.733779]
[1725198103815,0.000818,58115.0,58114.0,1.74940616]
[1725198104020,0.3442,58134.0,58115.0,2.054897]
[1725198104242,0.3442,58134.0,58132.0,0.99591]
[1725198104463,0.3442,58134.0,58132.0,1.35757661]
[1725198104835,0.3442,58134.0,58132.0,1.36457661]
[1725198105042,0.3442,58134.0,58132.0,1.36557661]
[1725198105388,0.3442,58134.0,58132.0,1.36357661]
[1725198105602,0.3442,58134.0,58132.0,1.37757661]
[1725198106235,0.3442,58134.0,58132.0,1.03353261]
[1725198106595,0.3442,58134.0,58132.0,0.02962261]
[1725198106784,0.0278025,58133.0,58132.0,0.20164461]
[1725198107029,0.0288025,58133.0,58132.0,0.21064461]
[1725198107239,0.0288025,58133.0,58132.0,0.19664461]
[1725198107444,0.0298025,58133.0,58132.0,0.21964461]
[1725198107849,0.0278025,58133.0,58132.0,0.20164461]
[1725198108061,0.0278025,58133.0,58132.0,0.18764461]
[1725198108299,0.0288025,58133.0,58132.0,0.21064461]
[1725198110603,0.0288025,58133.0,58132.0,0.03862261]
[1725198113009,0.0288025,58133.0,58132.0,0.21064461]
[1725198113218,0.001818,58133.0,58132.0,0.62368761]
[1725198113424,0.001818,58133.0,58132.0,0.96773161]
[1725198113633,0.001818,58133.0,58132.0,0.62368761]
[1725198119706,0.001818,58133.0,58132.0,0.03927724]
[1725198119945,0.001818,58133.0,58132.0,0.01558963]
[1725198120322,0.001818,58133.0,58130.0,0.344055]
[1725198120517,0.001818,58133.0,58132.0,0.01298587]
[1725198120743,0.001818,58133.0,58131.0,0.172024]
[1725198120951,0.001818,58133.0,58132.0,0.01298587]
[1725198122653,0.001818,58133.0,58130.0,0.172028]
[1725198122847,0.001818,58133.0,58131.0,0.01298587]
[1725198123082,0.173839,58133.0,58129.0,0.004]
[1725198123287,0.345859,58133.0,58132.0,0.01298587]
[1725198123484,0.172025,58132.0,58126.0,0.238037]
[1725198123653,0.346859,58133.0,58132.0,0.01298587]
[1725198123654,0.518878,58133.0,58132.0,0.01298587]
[1725198123876,0.172025,58132.0,58126.0,0.238037]
[1725198125276,0.347859,58133.0,58127.0,0.321136]
[1725198125277,0.002818,58133.0,58127.0,0.321136]
[1725198125489,0.174838,58133.0,58127.0,0.321136]
[1725198125692,0.002818,58133.0,58129.0,0.004]
[1725198125929,0.001,58132.0,58129.0,0.004]
[1725198126737,0.002,58132.0,58130.0,0.172027]
[1725198127172,0.001,58132.0,58130.0,0.172027]
[1725198127388,0.001,58132.0,58129.0,0.004]
[1725198127600,0.002,58132.0,58130.0,0.172025]
[1725198128011,0.001,58132.0,58131.0,0.172025]
[1725198128217,0.002,58132.0,58131.0,0.172025]
[1725198128396,0.003,58132.0,58131.0,0.172025]
[1725198129250,0.003,58132.0,58130.0,0.012]
[1725198129433,0.003,58132.0,58130.0,0.184028]
[1725198129434,0.001,58132.0,58130.0,0.184028]
[1725198129847,0.172013,58135.0,58130.0,0.172028]
[1725198130293,0.002,58132.0,58131.0,0.012]
[1725198130516,0.002,58132.0,58131.0,0.03108505]
[1725198130721,0.002,58132.0,58131.0,0.01908505]
[1725198130934,0.002,58132.0,58131.0,0.01908516]
[1725198131548,0.002,58132.0,58131.0,0.01998386]
[1725198131986,0.003,58132.0,58131.0,0.20400886]
[1725198132176,0.001,58132.0,58131.0,0.20400886]
[1725198132630,0.001,58132.0,58131.0,0.54805886]
[1725198133176,0.002,58132.0,58131.0,0.54805886]
[1725198134172,0.002,58132.0,58131.0,0.54805837]
[1725198134804,0.002,58132.0,58131.0,0.56104192]
[1725198137860,0.002,58132.0,58131.0,0.57721238]
[1725198138056,0.002,58132.0,58131.0,0.57687238]
[1725198141153,0.02194762,58130.0,58129.0,0.004]
[1725198141329,0.02194762,58130.0,58129.0,0.53626373]
[1725198142728,0.02194762,58130.0,58129.0,0.520093]
[1725198142928,0.02294762,58130.0,58129.0,0.54826372]
[1725198143177,0.02394762,58130.0,58129.0,0.54826372]
[1725198143382,0.02394762,58130.0,58129.0,0.02817072]
[1725198143383,0.0398827,58130.0,58129.0,0.02817072]
[1725198143612,0.0398827,58130.0,58129.0,0.012]
[1725198143613,0.6237667,58130.0,58129.0,0.012]
[1725198143828,0.9678227,58130.0,58129.0,0.012]
[1725198144568,1.0541227,58130.0,58129.0,0.0128987]
[1725198144837,0.02294762,58130.0,58129.0,0.0008987]
[1725198145443,0.02394762,58130.0,58129.0,0.0008987]
[1725198145646,0.02394762,58130.0,58129.0,0.1729297]
[1725198145772,0.02294762,58130.0,58129.0,0.0008987]
[1725198145979,0.02394762,58130.0,58129.0,0.0008987]
[1725198146484,0.02294762,58130.0,58129.0,0.0008987]
[1725198147069,0.02294762,58130.0,58129.0,0.07834959]
[1725198147381,0.02394762,58130.0,58129.0,0.07838154]
[1725198147811,0.02394762,58130.0,58129.0,0.07838171]
[1725198147971,0.02494762,58130.0,58129.0,0.07838171]
[1725198148174,0.02494762,58130.0,58129.0,0.0008987]
[1725198148578,0.02494762,58130.0,58129.0,0.07840905]
[1725198148825,0.02494762,58130.0,58129.0,0.08923752]
[1725198150388,0.02494762,58130.0,58129.0,0.01172717]
[1725198150832,0.5915528,58130.0,58129.0,0.01172717]
[1725198151085,0.9356088,58130.0,58129.0,0.01172717]
[1725198151307,1.4337648,58130.0,58129.0,0.01172717]
[1725198151562,1.4337648,58130.0,58129.0,0.0008987]
[1725198154566,0.19697562,58130.0,58129.0,0.0008987]
[1725198154800,0.54103162,58130.0,58129.0,0.0008987]
[1725198155300,0.19697562,58130.0,58129.0,0.01172717]
[1725198155815,1.62409362,58130.0,58129.0,0.01172717]
[1725198156077,2.25136662,58130.0,58129.0,0.01172717]
[1725198156317,2.51991826,58130.0,58129.0,0.0008987]
[1725198156746,2.51791826,58130.0,58129.0,0.0008987]
[1725198157642,2.51891826,58130.0,58129.0,0.0008987]
[1725198157873,2.51791826,58130.0,58129.0,0.0008987]
[1725198158333,2.88896911,58130.0,58129.0,0.0008987]
[1725198158550,2.91196911,58130.0,58129.0,0.0008987]
[1725198158785,2.91296911,58130.0,58129.0,0.0008987]
[1725198159927,2.91396911,58130.0,58129.0,0.0008987]
[1725198160940,2.39510211,58130.0,58129.0,0.0008987]
[1725198161143,3.40989011,58130.0,58129.0,0.0008987]
[1725198164415,3.46744211,58130.0,58129.0,0.0008987]
[1725198165103,2.17106811,58130.0,58129.0,0.0008987]
[1725198165320,2.15032711,58130.0,58129.0,0.0008987]
[1725198167171,0.51500544,58112.0,58104.0,0.344204]
[1725198168040,0.19908341,58111.0,58107.0,0.172095]
[1725198168254,0.344186,58108.0,58103.0,0.004]
[1725198168478,0.02699741,58111.0,58103.0,0.004]
[1725198168708,0.172097,58107.0,58103.0,0.004]
[1725198169404,0.344176,58110.0,58103.0,0.004]
[1725198169633,0.172094,58108.0,58103.0,0.004]
[1725198169845,0.172094,58108.0,58103.0,0.176106]
[1725198170052,0.172094,58108.0,58104.0,0.0669]
[1725198170349,0.172094,58108.0,58104.0,0.1536]
[1725198170554,0.17209,58110.0,58105.0,0.172101]
[1725198170986,0.17309,58110.0,58105.0,0.172101]
[1725198171235,0.17209,58110.0,58105.0,0.172101]
[1725198171660,0.002,58108.0,58105.0,0.172101]
[1725198171887,0.002,58108.0,58104.0,0.1536]
[1725198171888,0.002,58108.0,58106.0,0.172098]
[1725198172133,0.001,58108.0,58106.0,0.172098]
[1725198172578,0.001,58108.0,58107.0,0.172096]
[1725198173028,0.173088,58110.0,58106.0,0.172099]
[1725198173442,0.174088,58110.0,58106.0,0.172099]
[1725198173851,0.173088,58110.0,58106.0,0.172099]
[1725198174260,0.001,58108.0,58106.0,0.172099]
[1725198174672,0.172088,58110.0,58106.0,0.172099]
[1725198174797,0.172088,58110.0,58104.0,0.325702]
[1725198175006,0.001,58108.0,58104.0,0.325702]
[1725198175893,0.002,58108.0,58104.0,0.325702]
[1725198176759,0.001,58108.0,58104.0,0.325702]
[1725198177395,0.002,58108.0,58104.0,0.325702]
[1725198178469,0.002,58108.0,58105.0,0.172102]
[1725198179291,0.002,58108.0,58106.0,0.0008987]
[1725198179469,0.002,58108.0,58107.0,0.172096]
[1725198179908,0.001,58108.0,58106.0,0.0008987]
[1725198180588,0.002,58108.0,58106.0,0.0008987]
[1725198180828,0.174094,58108.0,58106.0,0.0008987]
[1725198181038,0.173094,58108.0,58106.0,0.0008987]
[1725198181268,1.277672,58107.0,58106.0,0.0008987]
[1725198181477,1.466272,58107.0,58106.0,0.0008987]
[1725198181706,1.810464,58107.0,58106.0,0.0008987]
[1725198181915,2.439992,58107.0,58106.0,0.0008987]
[1725198182131,2.396642,58107.0,58106.0,0.0008987]
[1725198182344,2.56519364,58107.0,58106.0,0.0008987]
[1725198183264,2.90938564,58107.0,58106.0,0.0008987]
[1725198183914,2.91138564,58107.0,58106.0,0.0008987]
[1725198184158,2.91138564,58107.0,58095.0,0.0008998]
[1725198184159,1.710756,58096.0,58095.0,0.0008998]
[1725198184417,4.25299064,58096.0,58095.0,0.0008998]
[1725198184613,4.45060264,58096.0,58095.0,0.0008998]
[1725198184798,4.46537564,58096.0,58095.0,0.0008998]
[1725198185053,0.005,58092.0,58079.0,0.0008998]
[1725198185268,1.711184,58080.0,58079.0,0.0008998]
[1725198185481,4.41577164,58080.0,58079.0,0.0008998]
[1725198185725,5.25650364,58080.0,58079.0,0.0008998]
[1725198185954,4.69962664,58080.0,58079.0,0.0008998]
[1725198186574,4.70662664,58080.0,58079.0,0.0008998]
[1725198186697,4.70662664,58080.0,58052.0,0.50540786]
[1725198186698,1.367371,58054.0,58052.0,0.50540786]
[1725198186931,2.630325,58054.0,58052.0,0.50540786]
[1725198187143,2.630325,58054.0,58051.0,0.0012998]
[1725198187362,2.753325,58054.0,58051.0,0.0012998]
[1725198187583,2.753325,58054.0,58047.0,0.008987]
[1725198187584,1.221813,58052.0,58047.0,0.008987]
[1725198187804,1.023072,58040.0,58039.0,0.00051706]
[1725198188012,2.6335152,58040.0,58039.0,0.00051706]
[1725198188462,2.6565152,58040.0,58039.0,0.00051706]
[1725198188887,2.5873622,58040.0,58039.0,0.00051706]
[1725198189348,2.07597897,58040.0,58039.0,0.00051706]
[1725198189988,1.49468997,58040.0,58039.0,0.00051706]
[1725198190195,1.467661,58040.0,58039.0,0.00051706]
[1725198190648,1.49468982,58040.0,58039.0,0.00051706]
[1725198191318,2.40699082,58040.0,58039.0,0.00051706]
[1725198191522,2.57554246,58040.0,58039.0,0.00051706]
[1725198191741,2.57454246,58040.0,58039.0,0.00051706]
[1725198191954,2.59754246,58040.0,58039.0,0.00051706]
[1725198192175,2.94813146,58040.0,58039.0,0.00051706]
[1725198192387,2.94813146,58040.0,58039.0,0.00141576]
[1725198192823,2.33874464,58040.0,58039.0,0.00141576]
[1725198193046,2.29897164,58040.0,58039.0,0.00141576]
[1725198193290,2.64356064,58040.0,58039.0,0.00141576]
[1725198193740,2.63856064,58040.0,58039.0,0.00141576]
[1725198193999,2.00182664,58040.0,58039.0,0.00141576]
[1725198194233,1.92945164,58040.0,58039.0,0.00141576]
[1725198194480,1.93045164,58040.0,58039.0,0.00141576]
[1725198194737,1.90302064,58040.0,58039.0,0.00141576]
[1725198194915,1.90202064,58040.0,58039.0,0.00141576]
[1725198195159,1.63721264,58040.0,58039.0,0.00141576]
[1725198195376,1.208061,58040.0,58039.0,0.00141576]
[1725198195586,0.001,58040.0,58039.0,0.00141576]
[1725198195842,0.001,58042.0,58039.0,0.09151576]
[1725198196083,0.01,58063.0,58039.0,0.26381076]
[1725198196084,0.001,58040.0,58039.0,0.26381076]
[1725198196296,0.001,58040.0,58039.0,0.09151576]
[1725198196947,0.001,58040.0,58039.0,0.60840776]
[1725198197197,0.001,58040.0,58039.0,0.33371276]
[1725198197833,0.001,58040.0,58039.0,0.68030776]
[1725198198042,0.172275,58047.0,58041.0,0.002]
[1725198198276,0.172271,58048.0,58042.0,0.172288]
[1725198198513,0.001,58052.0,58043.0,0.172286]
[1725198198738,0.17227,58049.0,58043.0,0.172286]
[1725198198944,0.17227,58049.0,58039.0,0.50601076]
[1725198198945,0.02702931,58047.0,58044.0,0.171282]
[1725198199184,0.02702931,58047.0,58044.0,0.00344545]
[1725198199400,0.02702931,58047.0,58046.0,0.172277]
[1725198199644,0.02702931,58047.0,58043.0,0.00344545]
[1725198199858,0.172277,58046.0,58042.0,0.002]
[1725198200283,0.172277,58046.0,58041.0,0.172291]
[1725198200284,0.172277,58046.0,58041.0,0.174291]
[1725198200496,0.02702931,58047.0,58042.0,0.172288]
[1725198200704,0.02702931,58047.0,58043.0,0.172284]
[1725198200996,0.02702931,58047.0,58041.0,0.002]